[Event "*** SCC Grand Prix: Titled Tuesday Blitz"]
[Site "Chess.com"]
[Date "2020.07.07"]
[Round "10"]
[White "krzyzan94"]
[Black "antoszu"]
[Result "1-0"]
[WhiteElo "2675"]
[BlackElo "2540"]
[TimeControl "180+1"]
[EndTime "11:58:41 PDT"]
[Termination "krzyzan94 won by resignation"]

1. Nf3 {[%clk 0:02:57]} 1... d5 {[%clk 0:02:59.4]} 2. Ng1 {[%clk 0:02:57.9]}
2... Nf6 {[%clk 0:02:56.3]} 3. Nf3 {[%clk 0:02:48.9]} 3... Ng8 {[%clk
0:02:55.4]} 4. d4 {[%clk 0:02:42.1]} 4... Nf6 {[%clk 0:02:54]} 5. Bf4 {[%clk
0:02:42.4]} 5... e6 {[%clk 0:02:54.1]} 6. e3 {[%clk 0:02:42.8]} 6... c5 {[%clk
0:02:54.4]} 7. Nbd2 {[%clk 0:02:43.1]} 7... Nc6 {[%clk 0:02:54.1]} 8. c3 {[%clk
0:02:42.8]} 8... cxd4 {[%clk 0:02:54]} 9. exd4 {[%clk 0:02:42.2]} 9... Nh5
{[%clk 0:02:54]} 10. Be5 {[%clk 0:02:36.6]} 10... f6 {[%clk 0:02:53.4]} 11. Bg3
{[%clk 0:02:36.5]} 11... g6 {[%clk 0:02:53.9]} 12. Bd3 {[%clk 0:02:33.4]} 12...
Bg7 {[%clk 0:02:53.5]} 13. Nh4 {[%clk 0:02:26.3]} 13... f5 {[%clk 0:02:45]} 14.
Nhf3 {[%clk 0:02:07.1]} 14... Nxg3 {[%clk 0:02:37.9]} 15. hxg3 {[%clk
0:02:02.6]} 15... Qf6 {[%clk 0:02:24.3]} 16. Qe2 {[%clk 0:01:55.8]} 16... Bd7
{[%clk 0:02:23.9]} 17. Bb5 {[%clk 0:01:50.3]} 17... O-O {[%clk 0:01:59.6]} 18.
Bxc6 {[%clk 0:01:48.7]} 18... Bxc6 {[%clk 0:02:00.5]} 19. Ne5 {[%clk 0:01:49.2]}
19... Be8 {[%clk 0:02:00.2]} 20. f4 {[%clk 0:01:44.5]} 20... b5 {[%clk
0:02:00.3]} 21. Ndf3 {[%clk 0:01:40.6]} 21... a5 {[%clk 0:01:55.9]} 22. Nd3
{[%clk 0:01:37.6]} 22... b4 {[%clk 0:01:53.1]} 23. Ng5 {[%clk 0:01:35.8]} 23...
h6 {[%clk 0:01:28.7]} 24. Qxe6+ {[%clk 0:01:32.9]} 24... Kh8 {[%clk 0:01:15.4]}
25. Ne5 {[%clk 0:01:26.2]} 25... Qxe6 {[%clk 0:00:54.9]} 26. Nxe6 {[%clk
0:01:26]} 26... Rf6 {[%clk 0:00:55.4]} 27. Nc5 {[%clk 0:01:16.8]} 27... Bb5
{[%clk 0:00:50.8]} 28. Kd2 {[%clk 0:01:14.7]} 28... Rc8 {[%clk 0:00:45.4]} 29.
a4 {[%clk 0:01:10.4]} 29... Be8 {[%clk 0:00:36.8]} 30. cxb4 {[%clk 0:01:09.2]}
30... axb4 {[%clk 0:00:37.7]} 31. a5 {[%clk 0:01:09.7]} 31... Bb5 {[%clk
0:00:32.1]} 32. Rhc1 {[%clk 0:01:00.9]} 32... Ra8 {[%clk 0:00:28.5]} 33. Ncd3
{[%clk 0:00:59.1]} 33... Bf8 {[%clk 0:00:20.5]} 34. Rc7 {[%clk 0:00:53.8]} 34...
Rfa6 {[%clk 0:00:19]} 35. Nc5 {[%clk 0:00:42.1]} 35... Bxc5 {[%clk 0:00:11]} 36.
Rxc5 {[%clk 0:00:41]} 36... Bc4 {[%clk 0:00:07.3]} 37. Nxc4 {[%clk 0:00:35.4]}
37... dxc4 {[%clk 0:00:08.2]} 38. Rxc4 {[%clk 0:00:36.3]} 38... b3 {[%clk
0:00:09.1]} 39. Rb4 {[%clk 0:00:30.4]} 39... Rxa5 {[%clk 0:00:09.3]} 40. Rxa5
{[%clk 0:00:29.9]} 40... Rxa5 {[%clk 0:00:10.2]} 41. Rxb3 {[%clk 0:00:30.8]}
41... Kg7 {[%clk 0:00:10.8]} 42. Rb7+ {[%clk 0:00:30.4]} 42... Kf6 {[%clk
0:00:11.3]} 43. Kd3 {[%clk 0:00:26.6]} 43... Ra1 {[%clk 0:00:11.2]} 44. Rb6+
{[%clk 0:00:25.5]} 44... Kf7 {[%clk 0:00:11.1]} 45. Kc4 {[%clk 0:00:20.5]} 45...
Rg1 {[%clk 0:00:11.1]} 46. Kd5 {[%clk 0:00:19]} 46... Rxg2 {[%clk 0:00:11.4]}
47. Rb3 {[%clk 0:00:19.5]} 47... g5 {[%clk 0:00:10.6]} 48. Ke5 {[%clk
0:00:18.2]} 48... gxf4 {[%clk 0:00:08.6]} 49. gxf4 {[%clk 0:00:17.5]} 49... h5
{[%clk 0:00:08.6]} 50. Kxf5 {[%clk 0:00:17.3]} 50... h4 {[%clk 0:00:09.2]} 51.
Rb7+ {[%clk 0:00:17.6]} 51... Ke8 {[%clk 0:00:09.6]} 52. d5 {[%clk 0:00:17.8]}
52... Rd2 {[%clk 0:00:09]} 53. Rh7 {[%clk 0:00:16.6]} 53... Rxd5+ {[%clk
0:00:08.4]} 54. Ke6 {[%clk 0:00:17.1]} 1-0

[Event "*** SCC Grand Prix: Titled Tuesday Blitz"]
[Site "Chess.com"]
[Date "2020.07.07"]
[Round "10"]
[White "KaspMagAlpha"]
[Black "Nafania1"]
[Result "0-1"]
[WhiteElo "2241"]
[BlackElo "2434"]
[TimeControl "180+1"]
[EndTime "11:58:41 PDT"]
[Termination "Nafania1 won by checkmate"]

1. d4 {[%clk 0:03:00.9]} 1... Nf6 {[%clk 0:02:59.5]} 2. c4 {[%clk 0:02:58.9]}
2... e6 {[%clk 0:02:59.4]} 3. g3 {[%clk 0:02:55.6]} 3... Bb4+ {[%clk 0:02:59]}
4. Bd2 {[%clk 0:02:54.8]} 4... a5 {[%clk 0:02:58.5]} 5. Bg2 {[%clk 0:02:54.4]}
5... d5 {[%clk 0:02:56.9]} 6. Nf3 {[%clk 0:02:50.8]} 6... O-O {[%clk 0:02:56.4]}
7. O-O {[%clk 0:02:50.7]} 7... Be7 {[%clk 0:02:54.4]} 8. Bf4 {[%clk 0:02:42.1]}
8... c6 {[%clk 0:02:53.1]} 9. Ne5 {[%clk 0:02:40.4]} 9... Nbd7 {[%clk 0:02:47]}
10. Nd2 {[%clk 0:02:35.2]} 10... Nxe5 {[%clk 0:02:46.6]} 11. Bxe5 {[%clk
0:02:29.7]} 11... b6 {[%clk 0:02:21.5]} 12. e4 {[%clk 0:02:21.8]} 12... Ba6
{[%clk 0:02:20.5]} 13. b3 {[%clk 0:02:19]} 13... Nd7 {[%clk 0:02:19.7]} 14. Bf4
{[%clk 0:02:14.6]} 14... dxc4 {[%clk 0:02:18]} 15. bxc4 {[%clk 0:02:12.6]} 15...
Bb4 {[%clk 0:02:15.1]} 16. Rc1 {[%clk 0:02:11.1]} 16... Re8 {[%clk 0:02:06.1]}
17. e5 {[%clk 0:02:09.1]} 17... Rc8 {[%clk 0:02:04.9]} 18. Ne4 {[%clk
0:02:07.7]} 18... h6 {[%clk 0:01:58]} 19. Qh5 {[%clk 0:01:46.1]} 19... f5 {[%clk
0:01:49.1]} 20. exf6 {[%clk 0:01:32.5]} 20... Nxf6 {[%clk 0:01:47.7]} 21. Nxf6+
{[%clk 0:01:31.3]} 21... Qxf6 {[%clk 0:01:47.9]} 22. Be5 {[%clk 0:01:31.4]}
22... Qf7 {[%clk 0:01:47.2]} 23. Qg4 {[%clk 0:01:25.1]} 23... Red8 {[%clk
0:01:34.9]} 24. Be4 {[%clk 0:01:23]} 24... Bd6 {[%clk 0:01:28.3]} 25. Bg6 {[%clk
0:01:20.6]} 25... Qe7 {[%clk 0:01:28.2]} 26. Rfe1 {[%clk 0:01:03.9]} 26... Bxe5
{[%clk 0:01:28.4]} 27. Rxe5 {[%clk 0:01:03.3]} 27... Rd6 {[%clk 0:01:28.5]} 28.
c5 {[%clk 0:00:58.4]} 28... bxc5 {[%clk 0:01:26.4]} 29. dxc5 {[%clk 0:00:57.8]}
29... Rd5 {[%clk 0:01:22.4]} 30. Rxe6 {[%clk 0:00:54.6]} 30... Qf8 {[%clk
0:01:22.2]} 31. Rce1 {[%clk 0:00:42.2]} 31... Rg5 {[%clk 0:01:20.4]} 32. Qe4
{[%clk 0:00:38.7]} 32... Bb5 {[%clk 0:01:13.6]} 33. h4 {[%clk 0:00:36.8]} 33...
Rxc5 {[%clk 0:01:13.2]} 34. Qg4 {[%clk 0:00:21.4]} 34... Bc4 {[%clk 0:01:13]}
35. Re8 {[%clk 0:00:20.8]} 35... Rxe8 {[%clk 0:01:11.1]} 36. Rxe8 {[%clk
0:00:21.7]} 36... Qxe8 {[%clk 0:01:05.3]} 37. Bxe8 {[%clk 0:00:21.5]} 37... Bd5
{[%clk 0:01:05.6]} 38. Qf4 {[%clk 0:00:16.2]} 38... Rc4 {[%clk 0:01:01.5]} 39.
Qd2 {[%clk 0:00:13.5]} 39... Rb4 {[%clk 0:00:57.6]} 40. Bg6 {[%clk 0:00:11.8]}
40... Rg4 {[%clk 0:00:52.2]} 41. h5 {[%clk 0:00:09.5]} 41... Ra4 {[%clk
0:00:51.4]} 42. Kh2 {[%clk 0:00:09.1]} 42... Rxa2 {[%clk 0:00:51.5]} 43. Qe3
{[%clk 0:00:07]} 43... Kh8 {[%clk 0:00:50.5]} 44. Qe8+ {[%clk 0:00:06.6]} 44...
Bg8 {[%clk 0:00:50.7]} 45. Bf7 {[%clk 0:00:07]} 45... Rxf2+ {[%clk 0:00:50.9]}
46. Kh3 {[%clk 0:00:06.4]} 46... Rxf7 {[%clk 0:00:51.1]} 47. Qxc6 {[%clk
0:00:07.3]} 47... Rf6 {[%clk 0:00:49.8]} 48. Qc5 {[%clk 0:00:06.9]} 48... Be6+
{[%clk 0:00:49.8]} 49. g4 {[%clk 0:00:05.7]} 49... Rf3+ {[%clk 0:00:49.5]} 50.
Kg2 {[%clk 0:00:05.3]} 50... Bxg4 {[%clk 0:00:48.4]} 51. Qxa5 {[%clk 0:00:04.9]}
51... Rf5 {[%clk 0:00:47.6]} 52. Qd8+ {[%clk 0:00:04.6]} 52... Kh7 {[%clk
0:00:47.7]} 53. Qd3 {[%clk 0:00:05.1]} 53... g6 {[%clk 0:00:45.1]} 54. hxg6+
{[%clk 0:00:04.5]} 54... Kxg6 {[%clk 0:00:45.4]} 55. Kg3 {[%clk 0:00:05.4]}
55... h5 {[%clk 0:00:45.8]} 56. Qd6+ {[%clk 0:00:05.8]} 56... Kg5 {[%clk
0:00:45.8]} 57. Qd3 {[%clk 0:00:06.7]} 57... Kg6 {[%clk 0:00:45.7]} 58. Qd6+
{[%clk 0:00:06.6]} 58... Kg5 {[%clk 0:00:45.8]} 59. Qd3 {[%clk 0:00:07.5]} 59...
h4+ {[%clk 0:00:45.3]} 60. Kg2 {[%clk 0:00:06.8]} 60... h3+ {[%clk 0:00:45.3]}
61. Qxh3 {[%clk 0:00:07]} 61... Bxh3+ {[%clk 0:00:45.1]} 62. Kxh3 {[%clk
0:00:07.7]} 62... Kf4 {[%clk 0:00:45.3]} 63. Kh2 {[%clk 0:00:08.6]} 63... Kf3
{[%clk 0:00:45.6]} 64. Kg1 {[%clk 0:00:09.5]} 64... Kg3 {[%clk 0:00:45.4]} 65.
Kh1 {[%clk 0:00:09.2]} 65... Rf1# {[%clk 0:00:45.3]} 0-1

[Event "*** SCC Grand Prix: Titled Tuesday Blitz"]
[Site "Chess.com"]
[Date "2020.07.07"]
[Round "10"]
[White "Supernotar"]
[Black "ShahMatKanal"]
[Result "1-0"]
[WhiteElo "2780"]
[BlackElo "2485"]
[TimeControl "180+1"]
[EndTime "11:58:42 PDT"]
[Termination "Supernotar won on time"]

1. d4 {[%clk 0:03:00.9]} 1... d5 {[%clk 0:02:58.7]} 2. c4 {[%clk 0:03:01.1]}
2... e6 {[%clk 0:02:57.2]} 3. Nf3 {[%clk 0:03:01.3]} 3... Nf6 {[%clk 0:02:57.1]}
4. e3 {[%clk 0:03:01.1]} 4... Be7 {[%clk 0:02:54.1]} 5. Nbd2 {[%clk 0:02:59.9]}
5... O-O {[%clk 0:02:53.7]} 6. Bd3 {[%clk 0:03:00]} 6... c5 {[%clk 0:02:51.7]}
7. dxc5 {[%clk 0:02:59.3]} 7... Bxc5 {[%clk 0:02:50.2]} 8. a3 {[%clk 0:02:57.5]}
8... a6 {[%clk 0:02:43.3]} 9. b4 {[%clk 0:02:57.2]} 9... Be7 {[%clk 0:02:43.2]}
10. Bb2 {[%clk 0:02:57]} 10... Nbd7 {[%clk 0:02:38.5]} 11. O-O {[%clk
0:02:56.3]} 11... b6 {[%clk 0:02:32.2]} 12. Rc1 {[%clk 0:02:47.7]} 12... Bb7
{[%clk 0:02:31]} 13. Qe2 {[%clk 0:02:46.3]} 13... dxc4 {[%clk 0:02:16.5]} 14.
Nxc4 {[%clk 0:02:39.7]} 14... b5 {[%clk 0:02:07.5]} 15. Na5 {[%clk 0:02:39.2]}
15... Bxf3 {[%clk 0:01:47.2]} 16. Qxf3 {[%clk 0:02:34.3]} 16... Ne5 {[%clk
0:01:43.3]} 17. Bxh7+ {[%clk 0:02:28]} 17... Kxh7 {[%clk 0:01:38.5]} 18. Bxe5
{[%clk 0:02:27.9]} 18... Qd3 {[%clk 0:01:35]} 19. Nc6 {[%clk 0:02:23.8]} 19...
Bd8 {[%clk 0:01:20.8]} 20. Rc3 {[%clk 0:01:55.5]} 20... Qe4 {[%clk 0:01:10.1]}
21. Qh3+ {[%clk 0:01:41.4]} 21... Kg8 {[%clk 0:01:08.5]} 22. Rd1 {[%clk
0:01:34.5]} 22... Qg4 {[%clk 0:00:58.6]} 23. Qxg4 {[%clk 0:01:27.5]} 23... Nxg4
{[%clk 0:00:58.3]} 24. Bd6 {[%clk 0:01:23.3]} 24... Re8 {[%clk 0:00:55.7]} 25.
f3 {[%clk 0:01:22.2]} 25... Nf6 {[%clk 0:00:47.9]} 26. Nxd8 {[%clk 0:01:16.9]}
26... Rexd8 {[%clk 0:00:45.7]} 27. Rcd3 {[%clk 0:01:12.7]} 27... Nd5 {[%clk
0:00:40.9]} 28. Bc5 {[%clk 0:01:06.9]} 28... Rdc8 {[%clk 0:00:41]} 29. e4 {[%clk
0:01:05.4]} 29... Nf4 {[%clk 0:00:39.1]} 30. R3d2 {[%clk 0:00:59.6]} 30... a5
{[%clk 0:00:37.3]} 31. g3 {[%clk 0:00:59.2]} 31... Ng6 {[%clk 0:00:35]} 32. f4
{[%clk 0:00:55.3]} 32... axb4 {[%clk 0:00:31.5]} 33. axb4 {[%clk 0:00:55]} 33...
Ra3 {[%clk 0:00:18.9]} 34. Rd8+ {[%clk 0:00:51.2]} 34... Rxd8 {[%clk 0:00:19.4]}
35. Rxd8+ {[%clk 0:00:50.8]} 35... Kh7 {[%clk 0:00:20.3]} 36. Rd7 {[%clk
0:00:44]} 36... f6 {[%clk 0:00:10.8]} 37. Rb7 {[%clk 0:00:40.5]} 37... Ra1+
{[%clk 0:00:08.6]} 38. Kg2 {[%clk 0:00:39]} 38... Ra2+ {[%clk 0:00:09.5]} 39.
Kh3 {[%clk 0:00:32.8]} 39... Ra3 {[%clk 0:00:09.5]} 40. Kg4 {[%clk 0:00:30.8]}
40... Ra2 {[%clk 0:00:04.6]} 41. h4 {[%clk 0:00:29.6]} 41... Ra3 {[%clk
0:00:02.7]} 42. h5 {[%clk 0:00:29.2]} 42... Nh8 {[%clk 0:00:01.3]} 43. Bf8
{[%clk 0:00:28.3]} 43... f5+ {[%clk 0:00:01.8]} 44. exf5 {[%clk 0:00:24.9]}
44... exf5+ {[%clk 0:00:02.7]} 45. Kh4 {[%clk 0:00:22.7]} 45... Kg8 {[%clk
0:00:02.4]} 46. Bxg7 {[%clk 0:00:20.5]} 46... Nf7 {[%clk 0:00:02.1]} 47. h6
{[%clk 0:00:13.9]} 47... Ra2 {[%clk 0:00:02.4]} 48. Kh3 {[%clk 0:00:11.6]} 1-0

[Event "*** SCC Grand Prix: Titled Tuesday Blitz"]
[Site "Chess.com"]
[Date "2020.07.07"]
[Round "10"]
[White "dennisodessa"]
[Black "hectorfiori"]
[Result "1-0"]
[WhiteElo "2438"]
[BlackElo "2322"]
[TimeControl "180+1"]
[EndTime "11:58:42 PDT"]
[Termination "dennisodessa won by resignation"]

1. c4 {[%clk 0:03:00]} 1... e5 {[%clk 0:02:49.4]} 2. g3 {[%clk 0:02:59.7]} 2...
Nc6 {[%clk 0:02:49.1]} 3. Bg2 {[%clk 0:03:00]} 3... Bc5 {[%clk 0:02:49.6]} 4.
Nc3 {[%clk 0:02:59.4]} 4... d6 {[%clk 0:02:49.7]} 5. e3 {[%clk 0:02:59.9]} 5...
a6 {[%clk 0:02:49.3]} 6. Nge2 {[%clk 0:03:00.2]} 6... Nge7 {[%clk 0:02:49.9]} 7.
d4 {[%clk 0:03:00.3]} 7... exd4 {[%clk 0:02:49.4]} 8. Nxd4 {[%clk 0:03:01.2]}
8... O-O {[%clk 0:02:47.6]} 9. O-O {[%clk 0:02:58.7]} 9... Rb8 {[%clk
0:02:46.8]} 10. b3 {[%clk 0:02:56]} 10... Ba7 {[%clk 0:02:42.6]} 11. Bb2 {[%clk
0:02:55.9]} 11... Nxd4 {[%clk 0:02:40.6]} 12. exd4 {[%clk 0:02:56.8]} 12... b5
{[%clk 0:02:40.7]} 13. cxb5 {[%clk 0:02:43.7]} 13... axb5 {[%clk 0:02:41.6]} 14.
Qd2 {[%clk 0:02:24.3]} 14... b4 {[%clk 0:02:26.6]} 15. Ne2 {[%clk 0:02:22.5]}
15... Nf5 {[%clk 0:02:09.7]} 16. Rfe1 {[%clk 0:02:09.7]} 16... Qf6 {[%clk
0:01:47.4]} 17. d5 {[%clk 0:01:59.1]} 17... Qh6 {[%clk 0:01:33.2]} 18. Qxh6
{[%clk 0:01:57.7]} 18... Nxh6 {[%clk 0:01:34.1]} 19. Nd4 {[%clk 0:01:46.9]}
19... Ba6 {[%clk 0:01:19.2]} 20. Nc6 {[%clk 0:01:43.8]} 20... Ra8 {[%clk
0:01:16]} 21. Nxb4 {[%clk 0:01:29.1]} 21... Ng4 {[%clk 0:01:09.2]} 22. Re7
{[%clk 0:00:14.1]} 22... Bxf2+ {[%clk 0:01:02.4]} 23. Kh1 {[%clk 0:00:14]} 23...
Bc5 {[%clk 0:00:53.6]} 24. Nxa6 {[%clk 0:00:14.2]} 24... Rxa6 {[%clk 0:00:54.4]}
25. h3 {[%clk 0:00:13.9]} 25... Nf2+ {[%clk 0:00:42.5]} 26. Kh2 {[%clk
0:00:14.1]} 26... Nd3 {[%clk 0:00:39.6]} 27. Bc3 {[%clk 0:00:14.4]} 27... h6
{[%clk 0:00:26.2]} 28. Bf1 {[%clk 0:00:14.7]} 28... Rfa8 {[%clk 0:00:17.2]} 29.
Bxd3 {[%clk 0:00:14.7]} 29... Kf8 {[%clk 0:00:16.4]} 30. Bxa6 {[%clk 0:00:12]}
30... Kxe7 {[%clk 0:00:15.8]} 31. Bc4 {[%clk 0:00:09.7]} 31... g5 {[%clk
0:00:15.2]} 32. a4 {[%clk 0:00:09.5]} 32... f5 {[%clk 0:00:14.7]} 33. Re1+
{[%clk 0:00:09.3]} 33... Kf7 {[%clk 0:00:14.3]} 34. Bd3 {[%clk 0:00:09.4]} 34...
f4 {[%clk 0:00:14.2]} 35. gxf4 {[%clk 0:00:09.1]} 35... gxf4 {[%clk 0:00:15.1]}
36. Bd2 {[%clk 0:00:07.5]} 36... f3 {[%clk 0:00:14.2]} 37. Rf1 {[%clk
0:00:07.5]} 37... f2 {[%clk 0:00:13.6]} 38. Be1 {[%clk 0:00:07.6]} 38... Rb8
{[%clk 0:00:10]} 39. Bxf2 {[%clk 0:00:08.1]} 39... Bxf2 {[%clk 0:00:10.7]} 40.
Rxf2+ {[%clk 0:00:09]} 40... Ke7 {[%clk 0:00:11.4]} 41. Bc4 {[%clk 0:00:09.4]}
41... Rb4 {[%clk 0:00:09.9]} 42. a5 {[%clk 0:00:09.7]} 42... Rb8 {[%clk
0:00:09.2]} 43. a6 {[%clk 0:00:10.3]} 43... Ra8 {[%clk 0:00:09.5]} 44. Ra2
{[%clk 0:00:10.8]} 44... Ra7 {[%clk 0:00:09.6]} 45. Bb5 {[%clk 0:00:11.2]} 45...
Kf6 {[%clk 0:00:10.1]} 46. Bc6 {[%clk 0:00:11.5]} 46... Ke5 {[%clk 0:00:10.7]}
47. Bb7 {[%clk 0:00:11.9]} 47... Kd4 {[%clk 0:00:11]} 48. Rc2 {[%clk 0:00:11.7]}
1-0

[Event "*** SCC Grand Prix: Titled Tuesday Blitz"]
[Site "Chess.com"]
[Date "2020.07.07"]
[Round "10"]
[White "FedaMaster"]
[Black "Natalya_Buksa"]
[Result "1-0"]
[WhiteElo "2454"]
[BlackElo "2545"]
[TimeControl "180+1"]
[EndTime "11:58:43 PDT"]
[Termination "FedaMaster won by checkmate"]

1. e4 {[%clk 0:03:00.9]} 1... c5 {[%clk 0:02:58.7]} 2. d4 {[%clk 0:03:00.8]}
2... cxd4 {[%clk 0:02:58.5]} 3. c3 {[%clk 0:03:00.7]} 3... d3 {[%clk 0:02:58.7]}
4. Bxd3 {[%clk 0:03:00.2]} 4... Nc6 {[%clk 0:02:59.1]} 5. c4 {[%clk 0:03:00.2]}
5... Ne5 {[%clk 0:02:55.9]} 6. Be2 {[%clk 0:02:59.8]} 6... d6 {[%clk 0:02:51.5]}
7. Nc3 {[%clk 0:02:58.9]} 7... Nf6 {[%clk 0:02:50.5]} 8. Bf4 {[%clk 0:02:48.5]}
8... Nc6 {[%clk 0:02:47.2]} 9. Nf3 {[%clk 0:02:43]} 9... g6 {[%clk 0:02:47.4]}
10. e5 {[%clk 0:02:40.4]} 10... dxe5 {[%clk 0:02:46.7]} 11. Qxd8+ {[%clk
0:02:39.5]} 11... Nxd8 {[%clk 0:02:46.5]} 12. Bxe5 {[%clk 0:02:35.4]} 12... Bg7
{[%clk 0:02:23.2]} 13. Nd5 {[%clk 0:02:34.5]} 13... Ne6 {[%clk 0:02:23.5]} 14.
Nxf6+ {[%clk 0:02:12.9]} 14... Bxf6 {[%clk 0:02:21.8]} 15. Bxf6 {[%clk
0:02:12.5]} 15... exf6 {[%clk 0:02:22.7]} 16. O-O-O {[%clk 0:02:11.8]} 16... Bd7
{[%clk 0:02:21.7]} 17. Rhe1 {[%clk 0:01:51.5]} 17... O-O-O {[%clk 0:02:21.6]}
18. Nd4 {[%clk 0:01:42.7]} 18... Nxd4 {[%clk 0:02:16.4]} 19. Rxd4 {[%clk
0:01:41.8]} 19... Bc6 {[%clk 0:02:17]} 20. Rxd8+ {[%clk 0:01:40.2]} 20... Rxd8
{[%clk 0:02:17]} 21. Bf1 {[%clk 0:01:26.5]} 21... h5 {[%clk 0:02:12.3]} 22. Re7
{[%clk 0:01:24.5]} 22... Rd7 {[%clk 0:02:12.2]} 23. Rxd7 {[%clk 0:01:24.4]}
23... Kxd7 {[%clk 0:02:12.5]} 24. Kd2 {[%clk 0:01:15.4]} 24... g5 {[%clk
0:02:11.3]} 25. Ke3 {[%clk 0:01:09.7]} 25... Ke6 {[%clk 0:02:10.3]} 26. g3
{[%clk 0:01:02.7]} 26... f5 {[%clk 0:02:07.2]} 27. f4 {[%clk 0:01:01.1]} 27...
f6 {[%clk 0:02:07.3]} 28. b4 {[%clk 0:00:46.6]} 28... b6 {[%clk 0:01:50.5]} 29.
h4 {[%clk 0:00:37.8]} 29... g4 {[%clk 0:01:28.3]} 30. Kd4 {[%clk 0:00:35.6]}
30... Bf3 {[%clk 0:01:16]} 31. Bd3 {[%clk 0:00:28.6]} 31... Bg2 {[%clk
0:01:10.5]} 32. Bc2 {[%clk 0:00:23.3]} 32... Bc6 {[%clk 0:00:56.7]} 33. Bb3
{[%clk 0:00:23.3]} 33... Be8 {[%clk 0:00:56]} 34. c5+ {[%clk 0:00:23]} 34... Ke7
{[%clk 0:00:45.1]} 35. cxb6 {[%clk 0:00:19.5]} 35... axb6 {[%clk 0:00:44.9]} 36.
a4 {[%clk 0:00:20.4]} 36... Kd6 {[%clk 0:00:43]} 37. a5 {[%clk 0:00:18.7]} 37...
bxa5 {[%clk 0:00:39]} 38. bxa5 {[%clk 0:00:19.6]} 38... Bg6 {[%clk 0:00:27.1]}
39. Bd5 {[%clk 0:00:17.6]} 39... Be8 {[%clk 0:00:24.7]} 40. a6 {[%clk
0:00:16.9]} 40... Kc7 {[%clk 0:00:24.7]} 41. a7 {[%clk 0:00:16.3]} 41... Bc6
{[%clk 0:00:21.4]} 42. Bxc6 {[%clk 0:00:15.6]} 42... Kxc6 {[%clk 0:00:21.9]} 43.
a8=Q+ {[%clk 0:00:16.1]} 43... Kd6 {[%clk 0:00:21.4]} 44. Qe8 {[%clk 0:00:14.8]}
44... Kc7 {[%clk 0:00:21]} 45. Qe6 {[%clk 0:00:14.6]} 45... Kd8 {[%clk
0:00:20.8]} 46. Qxf6+ {[%clk 0:00:14.7]} 46... Ke8 {[%clk 0:00:21.7]} 47. Qxf5
{[%clk 0:00:14.6]} 47... Ke7 {[%clk 0:00:22.6]} 48. Qxh5 {[%clk 0:00:14.3]}
48... Kf6 {[%clk 0:00:22.8]} 49. Qg5+ {[%clk 0:00:13.5]} 49... Kf7 {[%clk
0:00:22.9]} 50. h5 {[%clk 0:00:13.3]} 50... Kf8 {[%clk 0:00:23.4]} 51. Qg6
{[%clk 0:00:12.3]} 51... Ke7 {[%clk 0:00:23.4]} 52. Ke5 {[%clk 0:00:11.5]} 52...
Kd7 {[%clk 0:00:23.6]} 53. Qd6+ {[%clk 0:00:11]} 53... Kc8 {[%clk 0:00:23.6]}
54. Qe7 {[%clk 0:00:10.9]} 54... Kb8 {[%clk 0:00:23.6]} 55. h6 {[%clk
0:00:10.6]} 55... Ka8 {[%clk 0:00:24.5]} 56. h7 {[%clk 0:00:10.8]} 56... Kb8
{[%clk 0:00:25.4]} 57. h8=Q# {[%clk 0:00:11.1]} 1-0